[Event "Icelandic Championship 2024"]
[Site "Mosfellsbaer"]
[Date "2024.04.16"]
[Round "1.1"]
[White "Kjartansson, Gudmundur"]
[Black "Steingrimsson, Hedinn"]
[Result "1/2-1/2"]
[ECO "C92"]
[WhiteElo "2480"]
[BlackElo "2502"]
[Annotator "RC"]
[PlyCount "65"]
[EventDate "2024.04.16"]
[EventType "tourn"]
[EventCountry "ISL"]
[SourceTitle "playchess.com"]
[Source "ChessBase"]
[SourceQuality "1"]
[TimeControl "40/5400+30:1800+30"]

1. e4 {[%emt 0:00:03]} e5 {[%emt 0:03:18]} 2. Nf3 {[%emt 0:00:07]} Nc6 {[%emt 0:00:02]} 3. Bb5 {[%emt 0:00:06]} a6 {[%emt 0:00:04]} 4. Ba4 {[%emt 0:00:03]} Nf6 {[%emt 0:00:05]} 5. O-O {[%emt 0:00:07]} Be7 {[%emt 0:00:09]} 6. Re1 {[%emt 0:01:23]} b5 {[%emt 0:00:10]} 7. Bb3 {[%emt 0:00:03]} O-O {[%emt 0:00:04]} 8. h3 {[%emt 0:00:55]} Bb7 {[%emt 0:00:50]} 9. d3 {[%emt 0:00:05]} d6 {[%emt 0:02:07]} 10. c3 {[%emt 0:03:43]} Na5 {[%emt 0:01:25]} 11. Bc2 {[%emt 0:00:05]} c5 {[%emt 0:00:02]} 12. d4 {[%emt 0:02:55]} cxd4 {[%emt 0:14:47]} 13. cxd4 {[%emt 0:00:16]} d5 {[%emt 0:00:03]} 14. Nxe5 {[%emt 0:20:15]} Nxe4 {[%emt 0:22:35]} 15. Nd2 {[%emt 0:03:02]} f6 {[%emt 0:02:02]} 16. Nef3 {[%emt 0:05:42]} Bb4 {[%emt 0:03:48]} 17. a3 {[%emt 0:06:03]} Bxd2 {[%emt 0:00:10]} 18. Nxd2 {[%emt 0:02:02]} Re8 {[%emt 0:04:47]} 19. Nf1 {[%emt 0:02:59]} Qc7 {[%emt 0:05:47]} 20. g4 {[%emt 0:18:25]} Rac8 {[%emt 0:08:52]} 21. Re2 {[%emt 0:02:23]} b4 {[%emt 0:04:58]} 22. Kg2 {[%emt 0:09:34]} Qb6 {[%emt 0:02:19]} 23. axb4 {[%emt 0:05:28]} Nc6 {[%emt 0:01:53]} 24. f3 {[%emt 0:03:18]} Nd6 {[%emt 0:05:06]} 25. Rxe8+ {[%emt 0:01:24]} Rxe8 {[%emt 0:00:02]} 26. Be3 {[%emt 0:02:56]} Nxb4 {[%emt 0:01:12]} 27. Bf2 {[%emt 0:01:04]} a5 {[%emt 0:03:42]} 28. Qb1 {[%emt 0:03:09]} Nxc2 {[%emt 0:03:04]} 29. Qxc2 {[%emt 0:00:03]} Rc8 {[%emt 0:00:11]} 30. Qe2 {[%emt 0:03:38]} Re8 {[%emt 0:00:49]} 31. Qc2 {[%emt 0:00:10]} Rc8 {[%emt 0:00:50]} 32. Qe2 {[%emt 0:00:13]} Re8 {[%emt 0:01:39]} 33. Qc2 {[%emt 0:00:51]} 1/2-1/2

[Event "Icelandic Championship 2024"]
[Site "Mosfellsbaer"]
[Date "2024.04.16"]
[Round "1.2"]
[White "Stefansson, Vignir Vatnar"]
[Black "Domalchuk-Jonasson, Aleksandr"]
[Result "1-0"]
[ECO "E06"]
[WhiteElo "2459"]
[BlackElo "2368"]
[Annotator "RC"]
[PlyCount "97"]
[EventDate "2024.04.16"]
[EventType "tourn"]
[EventCountry "ISL"]
[SourceTitle "playchess.com"]
[Source "ChessBase"]
[SourceQuality "1"]
[TimeControl "40/5400+30:1800+30"]

1. d4 {[%emt 0:00:30]} d5 {[%emt 0:00:14]} 2. c4 {[%emt 0:00:00]} e6 {[%emt 0:00:18]} 3. Nf3 {[%emt 0:00:00]} Nf6 {[%emt 0:00:23]} 4. Nc3 {[%emt 0:00:18]} Be7 {[%emt 0:04:10]} 5. g3 {[%emt 0:00:21]} O-O {[%emt 0:01:53]} 6. Bg2 {[%emt 0:00:06]} dxc4 {[%emt 0:04:07]} 7. Ne5 {[%emt 0:00:06]} c5 {[%emt 0:01:47]} 8. dxc5 {[%emt 0:00:06]} Qxd1+ {[%emt 0:00:12]} 9. Nxd1 {[%emt 0:00:04]} Bxc5 {[%emt 0:00:08]} 10. O-O {[%emt 0:00:12]} Nd5 {[%emt 0:03:54]} 11. Nxc4 {[%emt 0:06:42]} Nc6 {[%emt 0:06:31]} 12. Bd2 {[%emt 0:00:27]} Bd7 {[%emt 0:13:10]} 13. Nc3 {[%emt 0:00:51]} Nxc3 {[%emt 0:02:47]} 14. Bxc3 {[%emt 0:00:07]} Rfd8 {[%emt 0:03:39]} 15. Na5 {[%emt 0:05:02]} Rab8 {[%emt 0:04:49]} 16. Nxc6 {[%emt 0:19:23]} Bxc6 {[%emt 0:00:12]} 17. Bxc6 {[%emt 0:00:06]} bxc6 {[%emt 0:00:02]} 18. Rfd1 {[%emt 0:04:09]} f6 {[%emt 0:16:16]} 19. Rac1 {[%emt 0:01:15]} Be7 {[%emt 0:04:14]} 20. f4 {[%emt 0:06:57]} Kf7 {[%emt 0:11:13]} 21. Kf2 {[%emt 0:00:48]} Ke8 {[%emt 0:07:10]} 22. e4 {[%emt 0:03:17]} Rxd1 {[%emt 0:02:32]} 23. Rxd1 {[%emt 0:00:49]} Bb4 {[%emt 0:00:03]} 24. Bd4 {[%emt 0:01:20]} Ba5 {[%emt 0:07:41]} 25. b3 {[%emt 0:02:59]} Rd8 {[%emt 0:01:17]} 26. Ke2 {[%emt 0:00:14]} a6 {[%emt 0:02:53]} 27. Rd3 {[%emt 0:02:13]} h5 {[%emt 0:00:00]} 28. Bb2 {[%emt 0:02:31]} Bb6 {[%emt 0:00:53]} 29. h3 {[%emt 0:03:21]} Rxd3 {[%emt 0:00:45]} 30. Kxd3 {[%emt 0:00:05]} Ke7 {[%emt 0:01:31]} 31. f5 {[%emt 0:01:26]} Bc7 {[%emt 0:00:44]} 32. g4 {[%emt 0:00:05]} hxg4 {[%emt 0:00:03]} 33. hxg4 {[%emt 0:00:04]} exf5 {[%emt 0:00:50]} 34. exf5 {[%emt 0:00:32]} Kd6 {[%emt 0:00:37]} 35. Ke4 {[%emt 0:02:59]} Bd8 {[%emt 0:00:21]} 36. Kd4 {[%emt 0:02:29]} c5+ {[%emt 0:00:33]} 37. Kc4 {[%emt 0:00:06]} Kc6 {[%emt 0:00:32]} 38. Bc3 {[%emt 0:01:34]} Kd6 {[%emt 0:00:31]} 39. Ba1 {[%emt 0:00:16]} Be7 {[%emt 0:00:33]} 40. Bb2 {[%emt 0:01:03]} Bd8 {[%emt 0:00:19]} 41. a4 {[%emt 0:32:59]} Kc6 {[%emt 0:07:23]} 42. Bc3 {[%emt 0:00:00]} Kd6 {[%emt 0:02:21]} 43. b4 {[%emt 0:00:00]} Kc6 {[%emt 0:20:17]} 44. b5+ {[%emt 0:00:00]} axb5+ {[%emt 0:00:36]} 45. axb5+ {[%emt 0:00:00]} Kb6 {[%emt 0:01:53]} 46. g5 {[%emt 0:00:00]} Kc7 {[%emt 0:00:42]} 47. Ba5+ {[%emt 0:00:00]} Kd7 {[%emt 0:00:23]} 48. Bxd8 {[%emt 0:00:00]} Kxd8 {[%emt 0:00:04]} 49. gxf6 {[%emt 0:00:00]} 1-0

[Event "Icelandic Championship 2024"]
[Site "Mosfellsbaer"]
[Date "2024.04.16"]
[Round "1.3"]
[White "Birkisson, Bardur Orn"]
[Black "Gretarsson, Helgi Ass"]
[Result "0-1"]
[ECO "B08"]
[WhiteElo "2169"]
[BlackElo "2468"]
[Annotator "ChessBase"]
[PlyCount "86"]
[EventDate "2024.04.16"]
[EventType "tourn"]
[EventCountry "ISL"]
[SourceTitle "playchess.com"]
[Source "ChessBase"]
[SourceQuality "1"]
[TimeControl "40/5400+30:1800+30"]

1. e4 {[%emt 0:00:06]} d6 {[%emt 0:00:07]} 2. d4 {[%emt 0:00:12]} Nf6 {[%emt 0:00:02]} 3. Nc3 {[%emt 0:00:20]} g6 {[%emt 0:00:04]} 4. Nf3 {[%emt 0:00:30]} Bg7 {[%emt 0:02:14]} 5. Be2 {[%emt 0:03:13]} O-O {[%emt 0:00:15]} 6. O-O {[%emt 0:00:39]} a6 {[%emt 0:00:10]} 7. a4 {[%emt 0:02:15]} Nc6 {[%emt 0:00:10]} 8. d5 {[%emt 0:08:42]} Nb4 {[%emt 0:02:04]} 9. h3 {[%emt 0:10:05]} e6 {[%emt 0:11:08]} 10. dxe6 {[%emt 0:03:29]} Bxe6 {[%emt 0:00:19]} 11. Nd4 {[%emt 0:04:17]} Bd7 {[%emt 0:00:59]} 12. Bf4 {[%emt 0:03:08]} Re8 {[%emt 0:05:18]} 13. Bf3 {[%emt 0:01:47]} Nc6 {[%emt 0:03:39]} 14. Be3 {[%emt 0:30:04]} Ne5 {[%emt 0:16:29]} 15. Be2 {[%emt 0:01:03]} c5 {[%emt 0:01:39]} 16. Nf3 {[%emt 0:05:54]} Nxf3+ {[%emt 0:00:40]} 17. Bxf3 {[%emt 0:00:10]} Bc6 {[%emt 0:00:06]} 18. Qd3 {[%emt 0:01:04]} Re6 {[%emt 0:01:10]} 19. Nd5 {[%emt 0:05:28]} Nd7 {[%emt 0:11:07]} 20. Nf4 {[%emt 0:00:20]} Re8 {[%emt 0:00:53]} 21. Qxd6 {[%emt 0:02:12]} Bxb2 {[%emt 0:00:16]} 22. Rab1 {[%emt 0:01:41]} Bg7 {[%emt 0:13:05]} 23. Rfd1 {[%emt 0:02:51]} Rb8 {[%emt 0:01:41]} 24. Bg4 {[%emt 0:04:43]} Bf8 {[%emt 0:12:17]} 25. Qd2 {[%emt 0:03:23]} Nf6 {[%emt 0:00:16]} 26. Qxd8 {[%emt 0:01:46]} Rbxd8 {[%emt 0:00:06]} 27. Rxd8 {[%emt 0:00:45]} Rxd8 {[%emt 0:00:01]} 28. e5 {[%emt 0:00:19]} Nxg4 {[%emt 0:09:26]} 29. hxg4 {[%emt 0:00:05]} Re8 {[%emt 0:00:20]} 30. e6 {[%emt 0:04:11]} fxe6 {[%emt 0:00:11]} 31. Nd3 {[%emt 0:00:34]} c4 {[%emt 0:07:55]} 32. Ne5 {[%emt 0:00:18]} Bd5 {[%emt 0:00:39]} 33. Nd7 {[%emt 0:00:22]} Bg7 {[%emt 0:01:27]} 34. Nb6 {[%emt 0:00:47]} Re7 {[%emt 0:00:05]} 35. f3 {[%emt 0:00:34]} c3 {[%emt 0:01:08]} 36. Kf2 {[%emt 0:00:34]} Bc6 {[%emt 0:00:07]} 37. Rd1 {[%emt 0:00:23]} Re8 {[%emt 0:00:04]} 38. Rd3 {[%emt 0:00:27]} Bf6 {[%emt 0:01:11]} 39. Bd4 {[%emt 0:00:35]} e5 {[%emt 0:00:32]} 40. Bxc3 {[%emt 0:00:14]} e4 {[%emt 0:00:15]} 41. Re3 {[%emt 0:04:36]} Bg5 {[%emt 0:01:52]} 42. Re1 {[%emt 0:05:16]} Rf8 {[%emt 0:00:19]} 43. a5 {[%emt 0:02:04]} Bh4+ {[%emt 0:00:14]} 0-1

[Event "Icelandic Championship 2024"]
[Site "Mosfellsbaer"]
[Date "2024.04.16"]
[Round "1.4"]
[White "Ptacnikova, Lenka"]
[Black "Stefansson, Hannes"]
[Result "0-1"]
[ECO "A11"]
[WhiteElo "2127"]
[BlackElo "2493"]
[Annotator "RC"]
[PlyCount "62"]
[EventDate "2024.04.16"]
[EventType "tourn"]
[EventCountry "ISL"]
[SourceTitle "playchess.com"]
[Source "ChessBase"]
[SourceQuality "1"]
[TimeControl "40/5400+30:1800+30"]

1. c4 {[%emt 0:00:06]} Nf6 {[%emt 0:00:28]} 2. g3 {[%emt 0:00:20]} c6 {[%emt 0:01:18]} 3. Nf3 {[%emt 0:00:52]} d5 {[%emt 0:00:54]} 4. Bg2 {[%emt 0:02:28]} dxc4 {[%emt 0:02:20]} 5. Qc2 {[%emt 0:16:14]} Qd5 {[%emt 0:08:37]} 6. Nc3 {[%emt 0:06:46]} Qh5 {[%emt 0:01:19]} 7. a4 {[%emt 0:04:07]} Na6 {[%emt 0:05:21]} 8. b3 {[%emt 0:03:46]} cxb3 {[%emt 0:10:55]} 9. Qxb3 {[%emt 0:00:54]} e5 {[%emt 0:01:32]} 10. d3 {[%emt 0:15:16]} Nc5 {[%emt 0:04:40]} 11. Qb1 {[%emt 0:00:57]} Be7 {[%emt 0:00:49]} 12. h3 {[%emt 0:03:07]} Nfd7 {[%emt 0:01:15]} 13. Nd2 {[%emt 0:10:16]} O-O {[%emt 0:01:48]} 14. Nc4 {[%emt 0:01:03]} Re8 {[%emt 0:09:01]} 15. Be3 {[%emt 0:03:04]} Bf8 {[%emt 0:01:49]} 16. a5 {[%emt 0:06:46]} Na6 {[%emt 0:02:02]} 17. Ne4 {[%emt 0:01:05]} Qg6 {[%emt 0:01:38]} 18. h4 {[%emt 0:00:50]} h6 {[%emt 0:03:30]} 19. h5 {[%emt 0:06:59]} Qe6 {[%emt 0:00:38]} 20. g4 {[%emt 0:00:31]} Nf6 {[%emt 0:06:53]} 21. Nxf6+ {[%emt 0:01:58]} Qxf6 {[%emt 0:00:10]} 22. Nd2 {[%emt 0:03:12]} Bxg4 {[%emt 0:01:42]} 23. Qxb7 {[%emt 0:03:13]} Nb4 {[%emt 0:00:34]} 24. Ne4 {[%emt 0:00:16]} Qe6 {[%emt 0:00:26]} 25. Bxa7 {[%emt 0:02:19]} Nc2+ {[%emt 0:03:19]} 26. Kd2 {[%emt 0:00:02]} Nxa1 {[%emt 0:00:07]} 27. Rxa1 {[%emt 0:00:04]} f5 {[%emt 0:04:56]} 28. Ng3 {[%emt 0:02:25]} e4 {[%emt 0:01:17]} 29. f3 {[%emt 0:00:36]} exf3 {[%emt 0:00:42]} 30. exf3 {[%emt 0:00:29]} Rxa7 {[%emt 0:02:36]} 31. Qxa7 {[%emt 0:00:12]} Qb3 {[%emt 0:00:07]} 0-1

[Event "Icelandic Championship 2024"]
[Site "Mosfellsbaer"]
[Date "2024.04.16"]
[Round "1.5"]
[White "Ragnarsson, Dagur"]
[Black "Heimisson, Hilmir Freyr"]
[Result "1/2-1/2"]
[ECO "D17"]
[WhiteElo "2333"]
[BlackElo "2361"]
[Annotator "RC"]
[PlyCount "91"]
[EventDate "2024.04.16"]
[EventType "tourn"]
[EventCountry "ISL"]
[SourceTitle "playchess.com"]
[Source "ChessBase"]
[SourceQuality "1"]
[TimeControl "40/5400+30:1800+30"]

1. d4 {[%emt 0:00:05]} Nf6 {[%emt 0:01:02]} 2. c4 {[%emt 0:01:13]} c6 {[%emt 0:01:30]} 3. Nc3 {[%emt 0:01:23]} d5 {[%emt 0:00:14]} 4. Nf3 {[%emt 0:00:13]} dxc4 {[%emt 0:01:10]} 5. a4 {[%emt 0:00:06]} Bf5 {[%emt 0:00:14]} 6. Ne5 {[%emt 0:00:30]} Nbd7 {[%emt 0:01:36]} 7. Nxc4 {[%emt 0:00:16]} Qc7 {[%emt 0:00:32]} 8. g3 {[%emt 0:01:13]} e5 {[%emt 0:00:24]} 9. dxe5 {[%emt 0:00:05]} Nxe5 {[%emt 0:00:15]} 10. Bf4 {[%emt 0:00:04]} Nfd7 {[%emt 0:00:21]} 11. Bg2 {[%emt 0:00:39]} g5 {[%emt 0:01:29]} 12. Ne3 {[%emt 0:00:16]} gxf4 {[%emt 0:00:10]} 13. Nxf5 {[%emt 0:00:06]} O-O-O {[%emt 0:01:02]} 14. Qc2 {[%emt 0:00:10]} Nc5 {[%emt 0:00:53]} 15. O-O {[%emt 0:03:29]} fxg3 {[%emt 0:00:09]} 16. hxg3 {[%emt 0:00:06]} a5 {[%emt 0:00:10]} 17. Rfd1 {[%emt 0:03:48]} h5 {[%emt 0:04:30]} 18. Rxd8+ {[%emt 0:00:22]} Qxd8 {[%emt 0:00:11]} 19. Rd1 {[%emt 0:00:06]} Qf6 {[%emt 0:00:29]} 20. Qd2 {[%emt 0:05:04]} Kb8 {[%emt 0:07:15]} 21. Bh3 {[%emt 0:27:10]} h4 {[%emt 0:31:32]} 22. g4 {[%emt 0:01:31]} Be7 {[%emt 0:10:00]} 23. Qe3 {[%emt 0:09:58]} Rg8 {[%emt 0:13:00]} 24. Nxe7 {[%emt 0:04:24]} Qxe7 {[%emt 0:00:01]} 25. f4 {[%emt 0:02:07]} Ng6 {[%emt 0:00:08]} 26. Qxe7 {[%emt 0:00:05]} Nxe7 {[%emt 0:00:05]} 27. Kf2 {[%emt 0:07:14]} Kc7 {[%emt 0:00:17]} 28. g5 {[%emt 0:02:06]} Rb8 {[%emt 0:03:47]} 29. Bg2 {[%emt 0:13:04]} Rh8 {[%emt 0:12:06]} 30. Bh3 {[%emt 0:08:29]} Rb8 {[%emt 0:00:24]} 31. Bg2 {[%emt 0:01:16]} Rh8 {[%emt 0:00:39]} 32. Bh3 {[%emt 0:01:45]} Ra8 {[%emt 0:02:33]} 33. Kf3 {[%emt 0:01:51]} Re8 {[%emt 0:06:09]} 34. e4 {[%emt 0:02:15]} Nc8 {[%emt 0:01:18]} 35. Bxc8 {[%emt 0:01:06]} Kxc8 {[%emt 0:00:02]} 36. Rh1 {[%emt 0:03:00]} Rh8 {[%emt 0:00:08]} 37. Kg4 {[%emt 0:00:22]} Nd3 {[%emt 0:00:51]} 38. Rh2 {[%emt 0:00:26]} h3 {[%emt 0:01:29]} 39. Nd1 {[%emt 0:00:52]} b5 {[%emt 0:00:56]} 40. axb5 {[%emt 0:01:12]} cxb5 {[%emt 0:00:01]} 41. f5 {[%emt 0:31:00]} Re8 {[%emt 0:10:39]} 42. Kf3 {[%emt 0:00:00]} Rh8 {[%emt 0:05:40]} 43. Kg3 {[%emt 0:00:00]} Rg8 {[%emt 0:00:31]} 44. Rxh3 {[%emt 0:05:40]} Re8 45. Kh4 {[%emt 0:00:14]} Rg8 46. Kg3 1/2-1/2

[Event "Icelandic Championship 2024"]
[Site "Mosfellsbaer"]
[Date "2024.04.16"]
[Round "1.6"]
[White "Gretarsson, Hjorvar Steinn"]
[Black "Prudnykova, Olga"]
[Result "0-1"]
[ECO "B55"]
[WhiteElo "2518"]
[BlackElo "2263"]
[Annotator "RC"]
[PlyCount "64"]
[EventDate "2024.04.16"]
[EventType "tourn"]
[EventCountry "ISL"]
[SourceTitle "playchess.com"]
[Source "ChessBase"]
[SourceQuality "1"]
[TimeControl "40/5400+30:1800+30"]

1. e4 {[%emt 0:00:04]} c5 {[%emt 0:00:05]} 2. Nf3 {[%emt 0:00:21]} d6 {[%emt 0:00:05]} 3. d4 {[%emt 0:01:20]} cxd4 {[%emt 0:00:04]} 4. Nxd4 {[%emt 0:00:02]} Nf6 {[%emt 0:00:04]} 5. f3 {[%emt 0:00:04]} e5 {[%emt 0:06:23]} 6. Nb3 {[%emt 0:00:18]} Be6 {[%emt 0:00:42]} 7. c4 {[%emt 0:00:52]} Be7 {[%emt 0:05:45]} 8. Be3 {[%emt 0:01:03]} O-O {[%emt 0:01:38]} 9. Nc3 {[%emt 0:01:13]} a5 {[%emt 0:10:03]} 10. Rc1 {[%emt 0:14:16]} Nc6 {[%emt 0:05:21]} 11. Nd5 {[%emt 0:04:39]} Nd7 {[%emt 0:00:21]} 12. Qd2 {[%emt 0:03:08]} a4 {[%emt 0:12:54]} 13. Na1 {[%emt 0:01:14]} f5 {[%emt 0:02:59]} 14. exf5 {[%emt 0:02:30]} Bxf5 {[%emt 0:01:55]} 15. Be2 {[%emt 0:04:22]} Nc5 {[%emt 0:13:00]} 16. Nc2 {[%emt 0:05:34]} e4 {[%emt 0:17:45]} 17. f4 {[%emt 0:06:54]} Bf6 {[%emt 0:04:41]} 18. Na3 {[%emt 0:02:50]} Qa5 {[%emt 0:01:51]} 19. Nxf6+ {[%emt 0:10:21]} Rxf6 {[%emt 0:00:02]} 20. Qxa5 {[%emt 0:05:45]} Rxa5 {[%emt 0:00:18]} 21. O-O {[%emt 0:06:23]} Nd3 {[%emt 0:03:18]} 22. Bxd3 {[%emt 0:09:17]} exd3 {[%emt 0:00:05]} 23. Nb5 {[%emt 0:01:55]} d5 {[%emt 0:02:17]} 24. Bd2 {[%emt 0:01:10]} dxc4 {[%emt 0:00:09]} 25. Bxa5 {[%emt 0:01:37]} Nxa5 {[%emt 0:00:03]} 26. Rce1 {[%emt 0:01:55]} Rb6 {[%emt 0:04:12]} 27. Re5 {[%emt 0:09:12]} Bg4 {[%emt 0:00:03]} 28. Rf2 {[%emt 0:00:48]} Be2 {[%emt 0:04:15]} 29. Nc3 {[%emt 0:02:54]} Rxb2 {[%emt 0:03:11]} 30. Nxe2 {[%emt 0:01:17]} dxe2 {[%emt 0:01:20]} 31. Rexe2 {[%emt 0:00:16]} Rb1+ {[%emt 0:00:35]} 32. Rf1 {[%emt 0:00:07]} Rb4 {[%emt 0:00:28]} 0-1

[Event "Icelandic Championship 2024"]
[Site "Mosfellsbaer"]
[Date "2024.04.17"]
[Round "2.1"]
[White "Steingrimsson, Hedinn"]
[Black "Prudnykova, Olga"]
[Result "1-0"]
[ECO "A34"]
[WhiteElo "2502"]
[BlackElo "2263"]
[Annotator "TA"]
[PlyCount "47"]
[EventDate "2024.04.16"]
[EventType "tourn"]
[EventCountry "ISL"]
[SourceTitle "playchess.com"]
[Source "ChessBase"]
[SourceQuality "1"]
[TimeControl "40/5400+30:1800+30"]

{[%evp 14,47,0,15,25,33,29,33,42,42,50,33,133,125,117,140,200,192,200,159,303,302,306,307,862,847,898,868,941,933,959,962,971,954,1109,1112]} 1. Nf3 {[%emt 0:05:22]} Nf6 {[%emt 0:01:52]} 2. c4 {[%emt 0:00:00]} c5 {[%emt 0:00:20]} 3. Nc3 {[%emt 0:00:14]} d5 {[%emt 0:00:06]} 4. cxd5 {[%emt 0:00:39]} Nxd5 {[%emt 0:00:05]} 5. g3 {[%emt 0:02:55]} Nc6 {[%emt 0:02:25]} 6. Bg2 {[%emt 0:00:46]} Nc7 {[%emt 0:00:08]} 7. a3 {[%emt 0:08:03]} e5 {[%emt 0:04:48]} 8. b4 {[%emt 0:01:22]} cxb4 {[%emt 0:09:05]} 9. axb4 {[%emt 0:00:09]} Bxb4 {[%emt 0:03:45] [#]} 10. Nxe5 $1 {[%emt 0:01:46]} O-O {[%emt 0:11:26] White is slightly better.} 11. Nxc6 {[%emt 0:11:48]} bxc6 {[%emt 0:00:05]} 12. Bxc6 {[%emt 0:00:05]} Bh3 {[%emt 0:03:47]} 13. Bxa8 $16 {[%emt 0:01:48]} Qxa8 {[%emt 0:00:03][%cal Ra8h1] [#]} 14. f3 {[%emt 0:01:19]} Re8 {[%emt 0:13:43]} (14... a5 $16 {was necessary.}) 15. Kf2 $18 {[%emt 0:01:36]} Qc6 {[%emt 0:08:21]} 16. Qa4 {[%emt 0:10:40]} (16. Rxa7 $2 Bc5+ 17. e3 Bxa7 $19) 16... Qb6+ {[%emt 0:05:25]} (16... Qd6 $16 {was called for.} 17. Rd1 (17. Qxa7 $2 {perishes.} Bc5+ $19) 17... a5) 17. e3 {[%emt 0:00:15]} Bxc3 {[%emt 0:12:35]} 18. dxc3 {[%emt 0:00:07]} Rxe3 $2 {[%emt 0:04:23]} (18... Be6 19. Qb4 (19. Qxa7 Qc6 $18) 19... Nd5 20. Qxb6 axb6) 19. Bxe3 {[%emt 0:07:54] White is clearly winning.} Qb2+ {[%emt 0:00:04]} 20. Ke1 {[%emt 0:00:05]} Qxc3+ {[%emt 0:00:20]} 21. Ke2 {[%emt 0:01:49][%cal Oe3d4] aiming for Bd4!} Qb2+ {[%emt 0:01:00]} 22. Bd2 {[%emt 0:01:13]} Nb5 {[%emt 0:00:27]} 23. Qb4 {[%emt 0:06:44]} Nd4+ {[%emt 0:02:20]} 24. Kf2 {[%emt 0:02:07] Black did not feel at home in the position after the opening.   Weighted Error Value: White=0.12 (very precise) /Black=0.50.  Mistake:       	---       	Black=4      OK:         	White=3     	Black=1      Best:        	White=3     	Black=1} 1-0